Cogmind - Beta 10.2 @@@ ROGUE MODE // 2020.10.31 @ 18:40:40 // Halloween2020/ForbiddenLore Player: Winter Result: Self-destructed Performance ------------- Evolutions (1) 500 Regions Visited (3) 600 Robots Destroyed (1) 5 Value Destroyed (34) 34 Prototype IDs (0) 0 Alien Tech Used (0) 0 Bonus (200) 200 TOTAL SCORE: 1339 Bonus ------- Pacifist 200 Cogmind --------- Core Integrity 230/400 Matter 300/300 Energy 400/400 System Corruption 0% Temperature Cool (6) Movement Core (50) Location -9/Storage Parts ------- > --- POWER (1) -------- (None) > --- PROPULSION (3) --- (None) > --- UTILITY (3) ------ Large Battery > --- WEAPON (2) ------- (None) > --- INVENTORY (4) ---- Rocket Launcher Peak State ------------ > --- POWER ------------ Ion Engine > --- PROPULSION ------- VTOL Module VTOL Module > --- UTILITY ---------- Large Battery Improved Sensor Array > --- WEAPON ----------- Small Laser Small Laser > --- INVENTORY -------- (None) [Rating: 10] Favorites ----------- Power Ion Engine Engine Ion Engine Propulsion VTOL Module Leg Aluminum Leg Hover Unit Hover Unit Flight Unit VTOL Module Utility Large Battery Device Improved Sensor Array Storage Large Battery Protection Light Armor Plating Weapon Small Laser Energy Gun Small Laser Build | -11 -10 -9 -9 ------- Run | Scr Mat Mat Sto Slots Evolved 2 | . . 2 . Power . | . . . . Propulsion 1 | . . 1 . Utility 1 | . . 1 . Weapon . | . . . . Parts Attached 21 | 6 12 1 2 Power 2 | 1 . . 1 Engine 2 | 1 . . 1 Core . | . . . . Reactor . | . . . . Propulsion 11 | 2 9 . . Treads . | . . . . Leg 4 | 2 2 . . Wheel . | . . . . Hover 2 | . 2 . . Flight 5 | . 5 . . Utility 6 | 1 3 1 1 Device 3 | . 1 1 1 Storage 2 | 1 1 . . Processor . | . . . . Hackware . | . . . . Protection 1 | . 1 . . Artifact . | . . . . Weapon 2 | 2 . . . Energy Gun 2 | 2 . . . Energy Cannon . | . . . . Ballistic Gun . | . . . . Ballistic Cannon . | . . . . Launcher . | . . . . Special Weapon . | . . . . Impact Weapon . | . . . . Slashing Weapon . | . . . . Piercing Weapon . | . . . . Special Melee Weapon . | . . . . Unidentified Prototypes . | . . . . Parts Lost 6 | . . . 6 Power 1 | . . . 1 Propulsion 2 | . . . 2 Utility 2 | . . . 2 Weapon 1 | . . . 1 Highest Loss Streak 5 | . . . 5 Average Slot Usage (%) 75 | . 85 66 61 Engine 12 | . 14 11 10 Leg 6 | . 10 . . Flight 14 | . 14 22 12 Device 6 | . . 8 19 Storage 12 | . 13 11 11 Protection 1 | . 2 . . Energy Gun 20 | . 28 13 9 Naked Turns . | . . . . Heaviest Build 14 | 11 14 10 11 Greatest Support 20 | 20 20 10 10 Greatest Overweight (x) 3 | 1 3 . 2 Average Overweight (x) . | . . . . Largest Inventory Capacity 6 | 6 6 4 4 Average Capacity 4 | 5 4 4 4 Most Carried 6 | 6 6 1 2 Average Carried 1 | 2 1 . . Final Capacity 6 | 6 4 4 4 Final Carried 2 | 2 . . 1 Class Distribution -------------------- 100% | Mutant Dominant Class ---------------- Mutant | -10/Materials Mutant | -9/Materials Mutant | -9/Storage Resources | -11 -10 -9 -9 ----------- Run | Scr Mat Mat Sto Matter Collected 409 | 198 92 . 119 Remotely . | . . . . Salvage Created 114 | . 64 . 50 Parts 2 | . 1 . 1 Haulers Intercepted . | . . . . Recyclers Shooed 1 | . 1 . . Parts Field Recycled . | . . . . Retrieved Matter . | . . . . Parts Self-Destructed . | . . . . Prevented . | . . . . Kills | -11 -10 -9 -9 ------- Run | Scr Mat Mat Sto Combat Hostiles Destroyed 1 | . . . 1 Melee 1 | . . . 1 Classes Destroyed 1 | . . . 1 Grunt 1 | . . . 1 Best Kill Streak 1 | . . . 1 Combat Bots Only 1 | . . . 1 Max Kills in Single Turn 1 | . . . 1 Gunslinging . | . . . . Exploded . | . . . . Melee 1 | . . . 1 Uniques/NPCs Destroyed . | . . . . Combat | -11 -10 -9 -9 -------- Run | Scr Mat Mat Sto Damage Taken 454 | . 69 27 358 Core 177 | . 7 . 170 Absorbed by Shields . | . . . . Core Remaining (%) 98 | 100 97 . . Volleys Fired 3 | . 3 . . Largest 2 | . 2 . . Hottest 80 | . 80 . . Shots Fired 6 | . 6 . . Gun 6 | . 6 . . Cannon . | . . . . Launcher . | . . . . Special . | . . . . Kinetic . | . . . . Thermal 6 | . 6 . . Explosive . | . . . . Electromagnetic . | . . . . Robot Hit Streak 4 | . 4 . . Robot Miss Streak 1 | . 1 . . Penetration Max . | . . . . Secondary Targets . | . . . . Shots Hit Robots 4 | . 4 . . Core Hits 5 | . 3 . 2 Critical Hits . | . . . . Critical Kills . | . . . . Critical Parts Destroyed . | . . . . Melee Attacks . | . . . . Impact . | . . . . Slashing . | . . . . Piercing . | . . . . Sneak Attacks . | . . . . Combat Hostiles . | . . . . Follow-up Attacks . | . . . . Damage Inflicted 60 | . 55 . 5 Guns 55 | . 55 . . Cannons . | . . . . Explosions . | . . . . Melee . | . . . . Ramming 5 | . . . 5 Kinetic . | . . . . Thermal 55 | . 55 . . Explosive . | . . . . Electromagnetic . | . . . . Impact . | . . . . Slashing . | . . . . Piercing . | . . . . Highest Corruption . | . . . . Average Corruption . | . . . . Corruption Purged . | . . . . Overload Shots . | . . . . Overflow Damage . | . . . . Projectiles . | . . . . Explosions . | . . . . Melee . | . . . . Knockbacks . | . . . . Impact . | . . . . Kinetic . | . . . . Secondary . | . . . . Self-Inflicted Damage 2 | . . . 2 Shots . | . . . . Rammed 3 | . . . 3 Targets Rammed 3 | . . . 3 Kicked . | . . . . Crushed . | . . . . Highest Temperature 18 | . 18 . . Average Temperature 10 | . 10 . . Received Heat Transfer 171 | . 18 9 144 Siege Activations . | . . . . Robots Corrupted . | . . . . Combat Hostiles . | . . . . Parts Fried . | . . . . Impact Corruptions . | . . . . Robots Melted . | . . . . Combat Hostiles . | . . . . Parts Melted . | . . . . Heat Transferred 125 | . 125 . . Parts Sabotaged . | . . . . Parts Stolen . | . . . . Parts Stripped . | . . . . Power Chain Reactions . | . . . . Missiles Intercepted . | . . . . Alert | -11 -10 -9 -9 ------- Run | Scr Mat Mat Sto Peak Influence 118 | . 98 118 68 Initial 49 | . . 40 49 Average 29 | . 20 64 46 Maximum Alert Level . | . . . . Low Security (%) 100 | 100 100 100 100 Level 1 . | . . . . Level 2 . | . . . . Level 3 . | . . . . Level 4 . | . . . . Level 5 . | . . . . High Security . | . . . . Max Security . | . . . . Squads Dispatched 1 | . . . 1 Investigation 1 | . . . 1 Extermination . | . . . . Reinforcement . | . . . . Assault . | . . . . Garrison . | . . . . Intercept . | . . . . Construction Impeded . | . . . . Haulers Reinforced . | . . . . Stealth | -11 -10 -9 -9 --------- Run | Scr Mat Mat Sto Distress Signals 1 | . . 1 . Communications Jammed . | . . . . Distress Signals . | . . . . Times Spotted 24 | . 12 4 8 Peak Tracking Total 11 | . 11 6 8 Tactical Retreats 1 | . 1 . . Traps | -11 -10 -9 -9 ------- Run | Scr Mat Mat Sto Traps Triggered 1 | . . . 1 Indirectly . | . . . . Trap Hack Attempts . | . . . . Triggered . | . . . . Disarmed . | . . . . Reprogrammed . | . . . . Reused . | . . . . Traps Extracted . | . . . . Installed . | . . . . Triggered . | . . . . Machines | -11 -10 -9 -9 ---------- Run | Scr Mat Mat Sto Machines Disabled . | . . . . Max in Single Turn . | . . . . Machines Sabotaged . | . . . . Garrisons Compromised . | . . . . Overloaded Fab Kills . | . . . . Fab Network Shutdowns . | . . . . Hacking | -11 -10 -9 -9 --------- Run | Scr Mat Mat Sto Machines Accessed 12 | . 5 2 5 Terminals 12 | . 5 2 5 Fabricators . | . . . . Repair Stations . | . . . . Recycling Units . | . . . . Scanalyzers . | . . . . Garrison Access . | . . . . Total Hacks 26 | . 11 5 10 Successful 12 | . 5 3 4 Failed 14 | . 6 2 6 Catastrophic 1 | . 1 . . Database Lockouts . | . . . . Manual 23 | . 10 5 8 Terminals 26 | . 11 5 10 Fabricators . | . . . . Repair Stations . | . . . . Recycling Units . | . . . . Scanalyzers . | . . . . Garrison Access . | . . . . Terminal Hacks 7 | . 2 1 4 Open Door 1 | . . . 1 Level Access Points 3 | . 1 1 1 Branch Access Points 1 | . . . 1 Zone Layout 2 | . 1 . 1 Fabricator Hacks . | . . . . Repair Station Hacks . | . . . . Recycling Unit Hacks . | . . . . Scanalyzer . | . . . . Garrison Access Hacks . | . . . . Unauthorized Hacks 5 | . 3 2 . Terminals 5 | . 3 2 . Botnet 5 | . 3 2 . Fabricators . | . . . . Repair Stations . | . . . . Recycling Units . | . . . . Scanalyzers . | . . . . Garrison Access . | . . . . Data Cores Recovered . | . . . . Used . | . . . . Hacking Detections 11 | . 5 2 4 Full Trace Events 1 | . . . 1 Feedback Events . | . . . . Feedback Blocked . | . . . . Robot Schematics Acquired . | . . . . Robots Built . | . . . . Matter . | . . . . Time . | . . . . Total Robot Build Rating . | . . . . Part Schematics Acquired . | . . . . Parts Built . | . . . . Matter . | . . . . Time . | . . . . Total Part Build Rating . | . . . . Parts Repaired . | . . . . Time . | . . . . Parts Recycled . | . . . . Recycled Matter . | . . . . Retrieved Matter . | . . . . Retrieved Components . | . . . . Parts Scanalyzed . | . . . . Part Schematics Acquired . | . . . . Parts Damaged . | . . . . Bothacking | -11 -10 -9 -9 ------------ Run | Scr Mat Mat Sto Used RIF Installer . | . . . . Robots Hacked . | . . . . Non-combat . | . . . . Combat . | . . . . Robot Hacks Applied . | . . . . Relay Couplers Released . | . . . . Robots Rewired . | . . . . Allies Hacked . | . . . . Hacks Repelled . | . . . . Allies | -11 -10 -9 -9 -------- Run | Scr Mat Mat Sto Total Allies . | . . . . Largest Group . | . . . . Highest-Rated Group . | . . . . Highest-Rated Ally . | . . . . Total Orders . | . . . . Ally Attacks . | . . . . Total Damage . | . . . . Kills . | . . . . Allies Corrupted . | . . . . Allies Melted . | . . . . Intel | -11 -10 -9 -9 ------- Run | Scr Mat Mat Sto Robot Analysis Total . | . . . . Derelict Logs Recovered . | . . . . Drone Launches . | . . . . Drone Recoveries . | . . . . Exploration | -11 -10 -9 -9 ------------- Run | Scr Mat Mat Sto Turns Passed 426 | 52 213 53 108 Spaces Moved 616 | 40 323 136 117 Core 30 | 15 5 . 10 Treads . | . . . . Legs 79 | 25 54 . . Wheels . | . . . . Hover 5 | . 5 . . Flight 502 | . 259 136 107 Fastest Speed 37 | 50 37 37 37 Average Speed 58 | 98 53 37 83 Slowest Speed 200 | 120 200 37 200 Overloaded Moves . | . . . . Propulsion Burnouts . | . . . . Robots Hopped 1 | . . 1 . Cave-ins Triggered . | . . . . Exploration Rate (%) 24 | 3 47 23 23 Regions Visited 3 Branch Regions 1 Pre-discovered Areas . | . . . . Known Exits Taken 1 | . 1 . . Unknown Exits Taken 2 | 1 . 1 . Scrap Searched . | . . . . Spaces Dug . | . . . . Terrain Destroyed . | . . . . Melee . | . . . . Projectile . | . . . . AOE . | . . . . Terrain Rammed . | . . . . Walls Destroyed . | . . . . Machines Disabled . | . . . . Actions | -11 -10 -9 -9 --------- Run | Scr Mat Mat Sto Total 677 | 51 363 137 126 Wait . | . . . . Move 611 | 39 322 133 117 Hop 1 | . . 1 . Pick Up 20 | 6 10 1 3 Fast Attach 2 | 2 . . . Attach 19 | 4 12 1 2 Detach 4 | . 4 . . Swap . | . . . . Drop 14 | . 12 1 1 Fire 3 | . 3 . . Melee . | . . . . Ram 3 | . . . 3 Kick . | . . . . Crush . | . . . . Escape Stasis . | . . . . Rewire . | . . . . Trap . | . . . . Miscellaneous . | . . . . Route ------- -11/Scrapyard -10/Materials (discovered 3 exits: *Mat x3) -9/Materials (discovered 4 exits: Mat x3 / *Sto) -9/Storage (discovered 2 exits: Mat / Rec) History --------- Turn | Location | Event 10 | -11/Scrapyard | Discovered new exit (range 15) 53 | -11/Scrapyard | Entered Materials 164 | -10/Materials | Identified exit to Materials 266 | -10/Materials | Entered another Materials area 266 | -9/Materials | Evolved 2 slots: Propulsion x1, Utility x1 291 | -9/Materials | Identified exit to Materials 311 | -9/Materials | Discovered new exit (range 16) 316 | -9/Materials | Build established: Mutant 319 | -9/Materials | Entered Storage 382 | -9/Storage | Identified exit to Recycling 427 | -9/Storage | Self-destructed Last Messages --------------- >>Access(Branch) Found 1 branch access point: (9,70) Recycling Map updated. ALERT: Suspicious activity at Terminal S002. Dispatching Investigation squad. Connecting with Terminal... >>Layout(Zone) Retrieving Zone 3D layout... Downloaded map data. Connecting with Door Terminal... Sml. Laser destroyed. VTOL Module destroyed. Slammed into G-34 Mercenary. Destabilizing: Core damaged (-16). Slammed into G-34 Mercenary. G-34 Mercenary destroyed. Lgt. Ion Engine destroyed. Terrain Scanner destroyed. Imp. Sensor Array destroyed. Map ----- +----------------------------------------------------+ | | | | | | | | | | | | | | | | | | | | | ??????????????????????????????????????????????? | | ?????????????????????????????#????????????????? | | ??????????????????????????#???????????????????? | | ??????????????????????????????????????????????? | | ??????????????????????????????????????????????? | | ??????????????????????????????????????????????? | | ??????????????????###### #?????????????? | | ?????????????????? ### """"" #?????????????? | | ?????????????????? ### " " #?????????????? | | ?????????????????? ### """"" ##?????#??????? | | ?????????????????? ### """"" #????#????????? | | ??????????????#??#"""### " " #?????????????? | | ?????????????????? ### """"" ###########???? | | ?????????????????? ### ###########???? | | ?????????????????#+#########+#+### # !!##???? | | ?????????? g @%% # " ! ##???? | | ?????????? g = gg w !##???? | | ?????????? a g g a # " ##???? | | ??????????? ########+##########+##T# ##???? | | ????????????????????# """"" #### ##???? | | ???????????????????## """"" ##########???? | | ????????????????????# """"" T#########???? | | ????????????????????# ! ##???????????? | | ????????????????????# #????????????? | | ???????????????#????######+#######????????????? | | ???????????????????????# #????????????????? | | ???????????????????????# #????????????????? | | ????????????? ?????????# T #??#####?????????? | | ???????????????????????# #??#"""#?????????? | | ???????????????????????# #??#"R"#?????????? | | ???????????????????????## #####" "####??????? | | ????????????????????????# # #??????? | | ???????????????????###### # ##??????? | | ???????????????????# T## # ####????? | | ???????????????????# + + """#????? | | ???????????????????# # # """ """ T"#????? | | ?????????????????#?# # # """ """ """#????? | | ???????????????????# ## #?""??????????????? | | ???????????????#???####?# # ? ?????????????? | | ????????????????????????# #??##?????????????? | +----------------------------------------------------+ Best States ------------- Heat Dissipation 28 Energy Generation 10 Energy Capacity 550 Matter Stores 300 Matter Capacity 300 Sight Range 16 Robot Scan Range 13 Terrain Scan Range 14 Terrain Scan Density 10 Armor Coverage 150 Evasion (%) 62 Item Schematics ----------------- None Robot Schematics ------------------ None Fabricated ------------ Nothing Alien Tech Used ----------------- None Achievements -------------- None Challenges ------------ None Game ------ Seed Winter Manual? 1 Play Time 00:16:00 Cumulative 6.8 hours Start 2020.10.31 @ 18:25:04 End 2020.10.31 @ 18:40:40 Sessions 1 Manual Loads 0 Difficulty Rogue Special Mode Halloween2020/ForbiddenLore Game No. 16 Rogue 16 Adventurer 0 Explorer 0 Win Type - Total 0 Types 0/0/0/0/0/0/0/0/0 Lore% 7 Gallery% 12 Achievement% 13 Wizard Run 0 Options --------- ASCII 0 Keyboard 0 Movement Mouse Keybinds 0 Fullscreen 1 Font 18/SmallcapsGlow Map View 76x50 Tactical HUD 0 Map Filters NONE Filters NONE Steam 1 RUN: 07e989fc-2fc7-4e9b-b3d6-f6300cff21cf